bitfinex/quotes_ETHUSD_20250724
["timestamp","ask_amount","ask_price","bid_price","bid_amount"]
[1753343028496,1e-08,3580.9,3580.8,11.44617202]
[1753343029181,1e-08,3580.9,3580.8,11.99617202]
[1753343029383,1e-08,3580.9,3580.8,11.44617202]
[1753343029899,1e-08,3580.9,3580.8,11.99617202]
[1753343030104,1e-08,3580.9,3580.8,11.44617202]
[1753343031624,1e-08,3580.9,3580.8,11.44017202]
[1753343031830,1e-08,3580.9,3580.8,6.99517202]
[1753343032037,1e-08,3580.9,3580.8,8.43917202]
[1753343032224,1e-08,3580.9,3580.8,11.43917202]
[1753343035037,1e-08,3580.9,3580.8,6.99517202]
[1753343035208,1e-08,3580.9,3580.8,11.43817202]
[1753343035409,1e-08,3580.9,3580.8,6.99517202]
[1753343036159,1e-08,3580.9,3580.8,11.43817202]
[1753343036311,0.002,3581.7,3581.6,3.55734824]
[1753343036738,0.002,3581.7,3581.6,8.58264824]
[1753343037120,0.002,3581.7,3581.6,8.58064824]
[1753343038346,0.002,3581.7,3581.6,7.81534824]
[1753343038847,0.002,3581.7,3581.6,2.93204824]
[1753343039008,0.002,3581.7,3581.6,7.37004824]
[1753343039568,0.002,3581.7,3581.6,7.81334824]
[1753343040075,0.002,3581.7,3581.6,3.58607499]
[1753343040358,0.002,3581.7,3581.6,11.02307499]
[1753343040560,0.002,3581.7,3581.6,6.58607499]
[1753343040859,0.002,3581.7,3581.6,11.02507499]
[1753343041229,0.002,3581.7,3581.6,6.58607499]
[1753343041431,0.002,3581.7,3581.6,11.02307499]
[1753343043171,0.7698,3582.5,3581.6,11.02307499]
[1753343043172,0.002,3582.5,3582.2,6.60698059]
[1753343043464,0.002,3582.5,3582.4,5.79142474]
[1753343043668,0.002,3582.5,3582.4,10.24142474]
[1753343043868,0.002,3582.5,3582.4,10.68472474]
[1753343045359,0.002,3582.5,3582.4,10.68172474]
[1753343045548,0.002,3582.5,3582.4,6.23472474]
[1753343045752,0.002,3582.5,3582.4,10.68172474]
[1753343046053,0.002,3582.5,3582.2,5.79156817]
[1753343046231,0.002,3582.5,3582.3,4.446]
[1753343046433,0.002,3582.5,3582.4,4.446]
[1753343046960,0.002,3582.5,3582.1,2.79160488]
[1753343047236,0.002,3582.5,3582.2,7.23755893]
[1753343047436,0.002,3582.5,3582.3,4.446]
[1753343047870,0.002,3582.5,3582.2,2.79155694]
[1753343048366,0.002,3582.5,3582.4,2.79142474]
[1753343048590,0.002,3582.5,3582.4,5.79142474]
[1753343048732,0.002,3582.5,3582.4,6.23682474]
[1753343049042,0.002,3582.5,3582.4,15.11066684]
[1753343049244,0.002,3582.5,3582.4,7.00632474]
[1753343049469,0.002,3582.5,3582.4,5.79142474]
[1753343049775,0.002,3582.5,3582.4,10.23542474]
[1753343049975,0.002,3582.5,3582.4,5.79142474]
[1753343050149,0.002,3582.5,3582.4,10.23542474]
[1753343051032,0.002,3582.5,3582.4,10.23342474]
[1753343051235,0.002,3582.5,3582.4,5.79142474]
[1753343051566,0.002,3582.5,3582.4,7.23242474]
[1753343051873,0.002,3582.5,3582.1,2.79158396]
[1753343052086,0.002,3582.5,3582.4,2.79142474]
[1753343052390,0.002,3582.5,3582.4,7.23342474]
[1753343053239,0.002,3582.5,3582.4,7.37262474]
[1753343053439,0.002,3582.5,3582.4,7.81802474]
[1753343054148,1e-08,3582.9,3582.4,7.81802474]
[1753343054149,1e-08,3582.9,3582.8,2.79111309]
[1753343054349,1e-08,3582.9,3582.8,11.02802422]
[1753343054549,1e-08,3582.9,3582.8,11.58471309]
[1753343054758,1e-08,3582.9,3582.8,11.72261371]
[1753343055774,1e-08,3582.9,3582.8,7.14671309]
[1753343056435,1e-08,3582.9,3582.8,11.59371309]
[1753343056941,1e-08,3582.9,3582.8,5.93031309]
[1753343057144,1e-08,3582.9,3582.8,10.37731309]
[1753343058246,1e-08,3582.9,3582.8,0.1392]
[1753343058491,0.80130001,3582.9,3582.8,0.1392]
[1753343058643,0.94810001,3582.9,3582.8,0.1392]
[1753343058940,1.60109082,3582.9,3582.8,4.5842]
[1753343059146,0.94810001,3582.9,3582.8,4.5842]
[1753343059377,0.80130001,3582.9,3582.8,4.5842]
[1753343059559,3.5923352,3582.9,3582.8,4.5842]
[1753343059739,0.94810001,3582.9,3582.8,0.1392]
[1753343059943,0.80130001,3582.9,3582.8,4.5842]
[1753343060144,0.80130001,3582.9,3582.8,0.1392]
[1753343060343,4.09835328,3582.9,3582.8,4.5802]
[1753343060994,2.79148074,3582.4,3581.9,6.702]
[1753343061148,0.9481,3582.3,3581.9,6.702]
[1753343061352,0.1468,3582.2,3582.0,4.44]
[1753343061659,0.8013,3582.3,3582.1,4.5792]
[1753343062087,0.9481,3582.3,3582.1,4.5792]
[1753343062645,0.8013,3582.3,3582.1,4.5792]
[1753343062863,0.8013,3582.3,3582.1,0.1392]
[1753343063048,3.73960266,3582.3,3582.2,4.44]
[1753343063248,3.73960266,3582.3,3582.1,0.1392]
[1753343063249,2.79158059,3582.2,3582.1,0.1392]
[1753343063471,2.79166102,3582.1,3581.9,6.702]
[1753343063752,0.1468,3582.1,3582.0,4.437]
[1753343063947,2.79173646,3582.0,3581.7,0.1392]
[1753343064254,2.79173646,3582.0,3581.8,4.437]
[1753343064460,2.79176056,3582.0,3581.8,4.437]
[1753343064983,2.79178758,3582.0,3581.8,4.437]
[1753343065279,2.79178758,3582.0,3581.7,0.1392]
[1753343065280,2.79189234,3581.8,3581.7,0.1392]
[1753343065484,3.61939234,3581.8,3580.9,5.79358015]
[1753343065689,0.8275,3581.6,3581.0,4.436]
[1753343065858,2.79220416,3581.4,3581.3,0.14]
[1753343066184,2.7922881,3581.3,3580.9,0.001]
[1753343066372,1.25273437,3581.6,3581.2,0.14]
[1753343066578,2.79221419,3581.4,3581.2,0.14]
[1753343066749,2.79220416,3581.4,3581.3,4.435]
[1753343066945,0.1468,3581.4,3581.3,4.435]
[1753343067152,0.8275,3581.6,3581.3,4.435]
[1753343067588,0.8275,3581.6,3581.4,0.14]
[1753343069173,2.7921262,3581.5,3581.4,4.43]
[1753343069376,3.0789262,3581.5,3581.0,0.34924765]
[1753343069592,2.79228946,3581.3,3581.0,0.14]
[1753343069756,2.79228946,3581.3,3581.1,4.43]
[1753343069950,2.79243807,3581.1,3581.0,0.14]
[1753343070153,2.79243807,3581.1,3580.9,0.001]
[1753343070154,2.79251605,3581.0,3580.9,0.001]
[1753343070656,3.55911605,3581.0,3580.9,0.001]
[1753343070853,4.39591605,3581.0,3580.9,0.001]
[1753343071314,0.7666,3581.0,3580.9,0.001]
[1753343071456,4.40657427,3581.0,3580.9,0.001]
[1753343073179,4.95657427,3581.0,3580.9,0.001]
[1753343075955,7.95657427,3581.0,3580.9,1e-08]
[1753343076160,3.34314004,3580.2,3580.1,0.041]
[1753343076460,8.57164004,3580.2,3580.1,0.041]
[1753343076825,9.8549092,3580.2,3580.1,0.041]
[1753343077298,12.8549092,3580.2,3580.1,1e-08]
[1753343080278,27.3549092,3580.2,3580.1,1e-08]
[1753343081299,27.4949092,3580.2,3580.1,1e-08]
[1753343083421,8.5519092,3580.2,3580.1,1e-08]
[1753343083601,12.9839092,3580.2,3580.1,1e-08]
[1753343083769,27.4839092,3580.2,3580.1,1e-08]
[1753343084376,2.06196916,3580.2,3580.1,1e-08]
[1753343084576,0.14,3580.2,3580.1,2.79321807]
[1753343084780,0.14,3580.2,3580.1,0.42830001]
[1753343084993,0.14,3580.2,3580.1,3.22151807]
[1753343086574,0.8289,3580.6,3580.1,3.22151807]
[1753343086575,0.807,3580.9,3580.5,2.79285486]
[1753343086779,0.14,3580.7,3580.5,3.22115486]
[1753343087682,0.14,3580.7,3580.6,2.79282801]
[1753343087994,0.14,3580.8,3580.6,3.22112801]
[1753343088185,0.14,3580.8,3580.4,2.79291697]
[1753343088186,0.14,3580.8,3580.7,3.22105002]
[1753343088382,0.14,3581.0,3580.8,2.79264495]
[1753343088584,4.431,3581.5,3580.9,3.22089404]
[1753343088784,0.14,3581.1,3580.9,0.4283]
[1753343089479,1.3582,3581.0,3580.6,0.14]
[1753343089723,2.79259404,3580.9,3580.1,2.79321224]
[1753343089879,2.79259404,3580.9,3580.2,2.79313725]
[1753343090081,0.8082,3581.0,3580.1,1e-08]
[1753343090383,4.429,3581.1,3580.7,2.79273331]
[1753343090681,0.85510099,3581.1,3580.7,3.22103331]
[1753343090901,0.85510099,3581.1,3580.8,0.4283]
[1753343091089,0.85510099,3581.1,3580.8,3.22096439]
[1753343091294,0.85510099,3581.1,3580.8,0.4283]
[1753343091720,0.85510099,3581.1,3580.7,2.79274463]
[1753343091923,0.85510099,3581.1,3580.7,0.4283]
[1753343092223,3.23779424,3581.0,3580.4,2.79298007]
[1753343092516,3.23779424,3581.0,3580.3,0.21491412]
[1753343092517,0.44522622,3581.0,3580.3,0.21491412]
[1753343092733,0.85510099,3581.1,3580.2,0.4283]
[1753343093023,0.85510099,3581.1,3580.1,1e-08]
[1753343093187,0.55,3581.0,3580.1,1e-08]
[1753343093386,2.79266419,3580.9,3580.2,2.79314004]
[1753343093605,3.49175641,3580.8,3580.1,1e-08]
[1753343093802,0.69902539,3580.8,3580.1,1e-08]
[1753343094018,0.69902539,3580.8,3580.1,2.79319876]
[1753343094201,0.69902539,3580.8,3580.4,2.79298272]
[1753343094806,0.69902539,3580.8,3580.4,2.79297909]
[1753343095005,0.55,3581.0,3580.4,2.79297909]
[1753343095211,3.34252346,3581.0,3580.4,2.79297909]
[1753343095917,0.55,3581.0,3580.4,2.79297909]
[1753343096122,3.34256355,3581.0,3580.4,2.79297909]
[1753343096343,0.55,3581.0,3580.4,2.79297909]
[1753343096631,0.86265719,3580.9,3580.4,3.22127909]
[1753343096853,0.86265719,3580.9,3580.4,2.79297909]
[1753343097127,0.86265719,3580.9,3580.5,0.4283]
[1753343097488,3.6552663,3580.9,3580.5,0.4283]
[1753343098121,0.803,3582.8,3581.8,3.58159234]
[1753343098290,0.26029568,3582.7,3581.8,8.00159234]
[1753343098481,0.803,3582.8,3581.8,8.42989234]
[1753343099628,0.803,3582.8,3581.8,8.78333014]
[1753343099815,0.14120001,3582.9,3581.8,8.78333014]
[1753343100628,0.14120001,3582.9,3581.8,7.36333014]
[1753343100827,0.14120001,3582.9,3581.8,11.79933014]
[1753343102338,0.14120001,3582.9,3581.8,7.36333014]
[1753343102544,0.14120001,3582.9,3581.8,11.79933014]
[1753343102745,0.00200001,3582.9,3581.8,11.79933014]
[1753343103160,1e-08,3581.9,3581.8,11.79933014]
[1753343103332,1e-08,3581.9,3581.8,11.79533014]
[1753343103535,1e-08,3581.9,3581.8,7.36333014]
[1753343103740,1e-08,3581.9,3581.8,11.79533014]
[1753343104165,1e-08,3581.9,3581.8,11.79333014]
[1753343104474,1e-08,3581.9,3581.8,11.79433014]
[1753343104638,0.00200001,3581.9,3581.8,7.36333014]
[1753343104838,0.00200001,3581.9,3581.8,11.79433014]
[1753343105765,0.00200001,3581.9,3581.8,8.79233014]
[1753343106141,0.00200001,3581.9,3581.8,4.36333014]
[1753343106536,0.00200001,3581.9,3581.8,8.78933014]
[1753343107073,0.00200001,3581.9,3581.8,8.78833014]
[1753343107271,0.00200001,3581.9,3581.8,3.14533014]
[1753343107571,0.00200001,3581.9,3581.8,4.7784378]
[1753343107876,0.00200001,3581.9,3581.8,0.3534378]
[1753343108034,2.79381441,3581.9,3581.8,4.425]
[1753343108377,2.79197029,3581.7,3581.6,4.425]
[1753343108748,2.79219033,3581.5,3581.1,0.14]
[1753343108950,0.1392,3581.7,3581.2,4.424]
[1753343109150,2.79204824,3581.6,3581.2,4.424]
[1753343109533,0.1392,3581.7,3581.1,0.14]
[1753343109737,0.1392,3581.7,3580.8,1.2308]
[1753343109738,0.00200001,3581.9,3581.5,2.93207865]
[1753343109940,0.00200001,3581.9,3581.7,0.1392]
[1753343110349,0.00200001,3581.9,3581.8,0.448]
[1753343110868,0.00200001,3581.9,3581.7,0.1392]
[1753343111064,0.00200001,3581.9,3581.7,0.5872]
[1753343111440,2.79381441,3581.9,3581.8,4.421]
[1753343111641,3.08711585,3581.9,3581.8,4.421]
[1753343111865,0.29530145,3581.9,3581.7,0.1392]
[1753343112078,3.08712136,3581.9,3581.8,4.421]
[1753343112276,2.79189234,3581.8,3581.7,0.1392]
[1753343112480,3.22632136,3581.9,3581.8,4.419]
[1753343112669,2.79200666,3581.7,3581.4,0.14]
[1753343112980,2.79200666,3581.7,3581.5,4.42]
[1753343113174,2.79192164,3581.8,3581.6,4.419]
[1753343113579,2.79197029,3581.7,3581.6,4.419]
[1753343113780,2.79197029,3581.7,3581.4,0.14]
[1753343114082,2.79191607,3581.8,3581.6,4.419]
[1753343114266,0.00200001,3581.9,3581.7,0.448]
[1753343114484,0.00200001,3581.9,3581.8,0.448]
[1753343114858,0.00200001,3581.9,3581.8,8.42199234]
[1753343115465,0.00200001,3581.9,3581.8,4.00499234]
[1753343115717,0.00200001,3581.9,3581.8,8.42199234]
[1753343116298,0.00200001,3581.9,3581.8,11.42199234]
[1753343117782,0.00200001,3581.9,3581.8,19.52633444]
[1753343120413,0.00200001,3581.9,3581.8,15.10933444]
[1753343120611,0.00200001,3581.9,3581.8,11.41499234]
[1753343120766,0.00200001,3581.9,3581.8,7.00499234]
[1753343121178,0.00200001,3581.9,3581.8,11.41399234]
[1753343121799,0.00200001,3581.9,3581.8,7.00499234]
[1753343122092,0.00200001,3581.9,3581.8,11.41399234]
[1753343122607,0.00200001,3581.9,3581.8,7.00499234]
[1753343122806,0.00200001,3581.9,3581.8,8.41199234]
[1753343123396,0.00200001,3581.9,3581.7,0.1392]
[1753343123599,0.00200001,3581.9,3581.8,4.41]
[1753343124108,0.00200001,3581.9,3581.8,7.20189234]
[1753343124311,0.00200001,3581.9,3581.8,7.64989234]
[1753343125470,0.00200001,3581.9,3581.8,3.23989234]
[1753343125813,0.00200001,3581.9,3581.7,0.1392]
[1753343125814,0.00200001,3581.9,3581.3,0.8142]
[1753343126014,0.00200001,3581.9,3581.4,4.41]
[1753343126015,3.6177574,3581.8,3581.4,4.41]
[1753343126213,0.64115046,3581.7,3581.5,0.14]
[1753343126518,0.8258,3581.8,3581.6,4.414]
[1753343126688,0.00200001,3581.9,3581.6,4.414]
[1753343126891,2.79386188,3581.9,3581.6,4.414]
[1753343127269,2.79386188,3581.9,3581.4,0.14]
[1753343127469,0.00200001,3581.9,3581.5,4.412]
[1753343127780,2.79197536,3581.7,3581.4,0.14]
[1753343127983,2.79384763,3581.9,3581.5,4.411]
[1753343128188,0.00200001,3581.9,3581.5,4.411]
[1753343128683,2.79382353,3581.9,3581.5,4.411]
[1753343129003,2.79194357,3581.8,3581.4,0.14]
[1753343129205,0.00200001,3581.9,3581.4,0.14]
[1753343129439,2.9330159,3581.9,3581.5,4.409]
[1753343129584,0.81092906,3581.9,3580.7,3.0]
[1753343129769,2.9321019,3581.6,3581.1,0.14]
[1753343129974,2.79227728,3581.4,3581.2,4.408]
[1753343130173,0.8272,3581.5,3581.1,4.408]
[1753343130425,0.1468,3581.4,3580.6,6.91751089]
[1753343130723,0.1468,3581.4,3580.7,4.409]
[1753343130724,2.79246397,3581.1,3580.7,4.409]
[1753343130873,2.79251711,3581.0,3580.7,4.409]
[1753343131205,2.79252231,3581.0,3580.7,4.409]
[1753343131424,2.79260854,3580.9,3580.7,4.409]
[1753343131578,2.79228213,3581.3,3580.6,0.20951089]
[1753343131780,0.37662821,3581.2,3580.7,4.407]
[1753343132199,2.79267589,3580.8,3580.2,2.79310944]
[1753343132413,2.79282801,3580.6,3580.1,1e-08]
[1753343132618,2.79303681,3580.4,3580.1,4.41400001]
[1753343132912,2.79314004,3580.2,3580.1,1e-08]
[1753343133076,2.79314004,3580.2,3580.1,4.41400001]
[1753343133286,2.79309049,3580.3,3580.1,4.41400001]
[1753343133490,2.79300508,3580.4,3580.1,4.41400001]
[1753343133691,2.79298402,3580.4,3580.1,4.41400001]
[1753343133928,2.79306306,3580.3,3580.1,4.41400001]
[1753343134226,2.79283028,3580.6,3580.1,4.41400001]
[1753343134403,0.36901303,3580.6,3580.1,4.41300001]
[1753343134596,0.36901303,3580.6,3580.1,1e-08]
[1753343135113,2.79314004,3580.2,3580.1,1e-08]
[1753343135301,2.79309115,3580.3,3580.1,1e-08]
[1753343135509,2.79299893,3580.4,3580.1,1e-08]
[1753343135830,0.55,3580.5,3580.1,1e-08]
[1753343135831,2.7930742,3580.3,3580.1,1e-08]
[1753343136133,2.7929894,3580.4,3580.1,1e-08]
[1753343136302,2.79308132,3580.3,3580.1,1e-08]
[1753343136631,2.79314004,3580.2,3580.1,1e-08]
[1753343137211,3.34314004,3580.2,3580.1,1e-08]
[1753343137521,4.01175382,3580.2,3580.1,1e-08]
[1753343138230,1.21861378,3580.2,3580.1,1e-08]
[1753343138399,0.55,3580.2,3580.1,1e-08]
[1753343138605,3.34314004,3580.2,3580.1,1e-08]
[1753343138784,0.55,3580.2,3580.1,1e-08]
[1753343138984,0.7505,3580.7,3580.1,0.45010001]
[1753343139221,0.00200001,3581.9,3580.3,2.79306203]
[1753343139406,2.79213568,3581.5,3580.8,2.79261635]
[1753343139611,3.07134925,3581.5,3580.9,7.20157401]
[1753343139785,2.79229425,3581.3,3580.9,4.409]
[1753343140192,0.14,3581.3,3580.9,4.409]
[1753343140386,0.14,3581.3,3580.1,2.79315735]
[1753343140387,2.79313718,3580.3,3580.1,1e-08]
[1753343140699,0.55,3580.6,3580.1,1e-08]
[1753343140899,0.55,3580.4,3580.1,1e-08]
[1753343141205,2.79255953,3581.0,3580.1,1e-08]
[1753343141206,0.1468,3581.0,3580.1,1e-08]
[1753343141546,0.25981924,3581.1,3580.2,0.4501]
[1753343141845,2.79256478,3581.0,3580.2,0.4501]
[1753343142062,0.25979484,3581.5,3580.3,2.79306203]
[1753343142196,2.79236688,3581.2,3580.6,2.79279388]
[1753343142391,0.55,3581.2,3580.6,2.79279388]
[1753343142791,2.79243995,3581.1,3580.5,2.7928839]
[1753343143025,0.55,3581.2,3580.6,4.413]
[1753343143200,2.7925643,3581.0,3580.6,4.413]
[1753343143399,2.79248794,3581.1,3580.6,4.413]
[1753343143817,2.79248794,3581.1,3580.6,4.8631]
[1753343144015,0.55,3581.2,3580.1,4.02639281]
[1753343144216,0.55,3581.2,3580.3,2.79300087]
[1753343144434,2.79257303,3581.0,3580.1,4.02641519]
[1753343144725,0.55,3581.2,3580.3,2.79304367]
[1753343144926,0.55,3581.2,3580.4,4.41]
[1753343145126,2.79256867,3581.0,3580.4,4.41]
[1753343145696,2.79260853,3580.9,3580.4,4.41]
[1753343145897,2.79254376,3581.0,3580.4,4.41]
[1753343146228,2.79260246,3580.9,3580.5,0.4501]
[1753343146733,0.55,3581.2,3580.6,4.409]
[1753343146931,0.8172,3581.8,3581.0,2.79249882]
[1753343147138,2.79201817,3581.7,3581.1,4.8561]
[1753343147337,0.00200001,3581.9,3581.3,0.8301]
[1753343147537,0.00200001,3581.9,3581.4,2.79220416]
[1753343147930,0.00200001,3581.9,3581.5,0.4501]
[1753343148236,2.79382341,3581.9,3581.6,4.407]
[1753343148560,2.79189235,3581.8,3581.6,4.407]
[1753343148722,2.79189234,3581.8,3581.7,4.406]
[1753343150707,4.13919234,3581.8,3581.7,4.405]
[1753343151051,0.55,3581.6,3580.5,0.4501]
[1753343151209,3.58984077,3581.0,3580.6,4.542]
[1753343151646,0.55,3580.9,3580.6,0.14]
[1753343151948,0.14,3580.8,3580.7,4.403]
[1753343154513,2.93267202,3580.8,3580.7,4.403]
[1753343154727,2.93267202,3580.8,3580.4,0.001]
[1753343154728,2.79275002,3580.7,3580.4,0.001]
[1753343154929,3.34290601,3580.5,3580.4,0.001]
[1753343155156,3.48290601,3580.5,3580.4,4.399]
[1753343155376,4.26710601,3580.5,3580.4,4.399]
[1753343155541,4.41390601,3580.5,3580.4,0.001]
[1753343156433,4.26710601,3580.5,3580.4,0.001]
[1753343156665,4.41390601,3580.5,3580.4,0.001]
[1753343157067,7.41390601,3580.5,3580.4,0.001]
[1753343157230,7.67475044,3580.5,3580.4,0.001]
[1753343158154,7.52795044,3580.5,3580.4,0.001]
[1753343159166,7.67475044,3580.5,3580.4,0.001]
[1753343160265,7.52795044,3580.5,3580.4,0.001]
[1753343160477,0.40084443,3580.5,3580.4,4.397]
[1753343160777,0.14,3580.5,3580.4,4.8471]
[1753343161276,2.93290601,3580.5,3580.4,4.397]
[1753343161475,2.93290601,3580.5,3580.4,0.001]
[1753343161476,0.14,3580.5,3580.4,0.001]
[1753343161650,0.14,3580.5,3580.4,4.397]
[1753343162479,2.93290601,3580.5,3580.4,4.397]
[1753343162686,3.48290601,3580.5,3580.4,0.001]
[1753343163249,4.29910601,3580.5,3580.4,4.397]
[1753343163584,1.5062,3580.5,3580.4,4.397]
[1753343163974,1.5062,3580.5,3580.4,0.001]
[1753343164578,4.29910601,3580.5,3580.4,0.001]
[1753343165650,1.5062,3580.5,3580.4,0.001]
[1753343165991,0.69,3580.5,3580.4,0.001]
[1753343166976,0.69,3580.5,3580.4,0.4511]
[1753343168267,0.69,3580.5,3580.4,3.24408402]
[1753343168489,0.69,3580.5,3580.4,0.4511]
[1753343168865,0.69,3580.5,3580.4,3.24408402]
[1753343169613,0.69,3580.5,3580.4,0.4511]
[1753343169780,0.69,3580.5,3580.4,0.001]
[1753343169986,3.48290601,3580.5,3580.4,0.001]
[1753343170203,3.48290601,3580.5,3580.4,4.396]
[1753343170204,4.29560601,3580.5,3580.4,4.396]
[1753343170412,1.5027,3580.5,3580.4,4.396]
[1753343170706,4.29560601,3580.5,3580.4,4.396]
[1753343171308,1.5027,3580.5,3580.4,4.396]
[1753343171874,4.29560601,3580.5,3580.4,4.396]
[1753343173302,1.5027,3580.5,3580.4,4.396]
[1753343174107,4.29560601,3580.5,3580.4,4.396]
[1753343174305,1.5027,3580.5,3580.4,4.396]
[1753343174511,4.29560601,3580.5,3580.4,4.396]
[1753343175506,4.29560601,3580.5,3580.4,0.001]
[1753343177595,4.44240601,3580.5,3580.4,0.001]
[1753343178203,4.7034543,3580.5,3580.4,0.001]
[1753343178421,4.29560601,3580.5,3580.4,0.001]
[1753343180823,7.44240601,3580.5,3580.4,0.001]
[1753343180986,7.70345675,3580.5,3580.4,0.001]
[1753343181503,7.70376967,3580.5,3580.4,0.001]
[1753343183902,15.95446806,3580.5,3580.4,1e-08]
[1753343184226,7.15679608,3580.0,3579.9,1e-08]
[1753343184412,11.95315974,3580.0,3579.9,1e-08]
[1753343184724,12.09995974,3580.0,3579.9,1e-08]
[1753343185326,20.19381217,3580.0,3579.9,1e-08]
[1753343185525,20.35061516,3580.0,3579.9,1e-08]
[1753343188536,20.20381516,3580.0,3579.9,1e-08]
[1753343188837,20.35061516,3580.0,3579.9,1e-08]
[1753343190249,20.35034311,3580.0,3579.9,1e-08]
[1753343190816,7.16406702,3580.0,3579.9,1e-08]
[1753343191139,3.19408807,3580.0,3579.9,0.44900001]
[1753343191341,2.93329608,3580.0,3579.9,0.44900001]
[1753343191540,3.48329608,3580.0,3579.9,1e-08]
[1753343191746,3.19408807,3580.0,3579.9,1e-08]
[1753343192273,3.74408807,3580.0,3579.9,1e-08]
[1753343194481,6.74408807,3580.0,3579.9,1e-08]
[1753343196178,6.74401868,3580.0,3579.9,1e-08]
[1753343196936,12.09591868,3580.0,3579.9,1e-08]
[1753343198967,12.25241555,3580.0,3579.9,1e-08]
[1753343199564,26.75241555,3580.0,3579.9,1e-08]
[1753343199896,26.60561555,3580.0,3579.9,1e-08]
[1753343200099,12.10561555,3580.0,3579.9,1e-08]
[1753343200594,12.25241555,3580.0,3579.9,1e-08]
[1753343201296,12.10561555,3580.0,3579.9,1e-08]
[1753343201499,12.25241555,3580.0,3579.9,1e-08]
[1753343202999,12.25241555,3580.0,3579.4,1e-08]
[1753343203000,2.79368626,3579.5,3579.4,1e-08]
[1753343203172,20.01176129,3579.5,3579.4,1e-08]
[1753343203499,20.31505816,3579.5,3579.4,1e-08]
[1753343203692,6.34376431,3579.4,3579.3,1e-08]
[1753343203890,6.90778378,3579.4,3579.3,1e-08]
[1753343204601,6.76098378,3579.4,3579.3,1e-08]
[1753343204808,10.44848691,3579.4,3579.3,1e-08]
[1753343204995,7.18776431,3579.4,3579.3,0.46010001]
[1753343205200,2.93368626,3579.5,3579.3,0.46010001]
[1753343205201,2.9336876,3579.5,3579.3,0.46010001]
[1753343205510,0.14,3579.5,3579.4,0.7664]
[1753343205678,0.14,3579.5,3579.4,1.2265]
[1753343206101,0.26097273,3579.8,3579.4,3.25386431]
[1753343206304,0.14,3579.7,3579.5,3.57403075]
[1753343206803,0.14,3579.7,3579.6,0.4601]
[1753343209019,2.79299033,3580.4,3579.8,0.7798]
[1753343209189,0.14,3579.9,3579.8,3.57322565]
[1753343209392,0.14,3579.9,3579.8,0.7798]
[1753343209815,2.79292819,3580.5,3579.9,2.79336759]
[1753343210114,0.14,3580.1,3580.0,0.4601]
[1753343210487,0.14,3580.1,3580.0,1.2792]
[1753343210688,0.26101362,3580.7,3580.1,0.8191]
[1753343210887,0.14,3580.5,3580.4,0.8191]
[1753343211088,0.14,3580.5,3580.4,1.2792]
[1753343212706,0.14,3580.5,3580.0,0.9111]
[1753343212707,2.79321806,3580.1,3580.0,0.9111]
[1753343213028,3.34321806,3580.1,3580.0,0.4601]
[1753343213430,3.34321806,3580.1,3579.6,5.1631]
[1753343213431,2.79342526,3579.9,3579.6,0.7711]
[1753343213630,3.34345214,3579.8,3579.7,0.4601]
[1753343213835,3.48345214,3579.8,3579.7,0.4601]
[1753343214030,2.79353018,3579.7,3579.6,0.7711]
[1753343214233,3.34353018,3579.7,3579.6,1.2312]
[1753343218138,3.34353018,3579.7,3579.3,1e-08]
[1753343218139,2.79376431,3579.4,3579.3,1e-08]
[1753343219103,3.34376431,3579.4,3579.3,1e-08]
[1753343219428,7.13696431,3579.4,3579.3,1e-08]
[1753343219627,7.54468504,3579.4,3579.3,1e-08]
[1753343219805,7.70127285,3579.4,3579.3,1e-08]
[1753343220517,7.55447285,3579.4,3579.3,1e-08]
[1753343220941,7.5544743,3579.4,3579.3,1e-08]
[1753343223449,7.7012743,3579.4,3579.3,1e-08]
[1753343224351,7.5544743,3579.4,3579.3,1e-08]
[1753343225050,11.78788504,3579.4,3579.3,1e-08]
[1753343225726,6.60468504,3579.4,3579.3,1e-08]
[1753343225921,0.26092073,3579.4,3579.3,0.46010001]
[1753343226150,0.26092073,3579.6,3579.3,0.46010001]
[1753343226313,2.79357762,3579.7,3579.3,0.46010001]
[1753343226513,0.26092073,3579.8,3579.4,0.7722]
[1753343226710,0.55,3579.7,3579.5,0.4601]
[1753343226948,0.55,3579.5,3579.4,0.7722]
[1753343227125,3.34368626,3579.5,3579.4,0.7722]
[1753343227334,4.39,3580.1,3579.4,0.7722]
[1753343227514,0.55,3579.6,3579.5,0.4709]
[1753343227951,3.34360822,3579.6,3579.5,0.4709]
[1753343228251,3.48360822,3579.6,3579.5,0.4709]
[1753343228423,0.69,3579.6,3579.5,0.4709]
[1753343228629,3.48360822,3579.6,3579.5,0.4709]
[1753343229330,0.69,3579.6,3579.5,0.4709]
[1753343229616,3.48360822,3579.6,3579.5,0.4709]
[1753343230154,3.34376431,3579.4,3579.3,1e-08]
[1753343230451,3.48376431,3579.4,3579.3,1e-08]
[1753343232543,3.74449508,3579.4,3579.3,1e-08]
[1753343234020,6.74449508,3579.4,3579.3,1e-08]
[1753343234350,3.34407655,3579.0,3578.9,0.001]
[1753343234554,11.54067655,3579.0,3578.9,0.001]
[1753343234758,11.54067655,3579.0,3578.9,1e-08]
[1753343234759,13.76720732,3579.0,3578.9,1e-08]
[1753343235054,13.92372593,3579.0,3578.9,1e-08]
[1753343235751,12.24472593,3579.0,3578.9,1e-08]
[1753343237062,12.09792593,3579.0,3578.9,1e-08]
[1753343237561,11.94140732,3579.0,3578.9,1e-08]
[1753343240861,6.34431078,3578.7,3578.6,1e-08]
[1753343241038,6.74504155,3578.7,3578.6,1e-08]
[1753343242059,6.90142634,3578.7,3578.6,1e-08]
[1753343242244,7.49644155,3578.7,3578.6,1e-08]
[1753343242428,7.65288614,3578.7,3578.6,1e-08]
[1753343242831,7.65288614,3578.7,3575.8,0.8273]
[1753343242832,32.94,3578.5,3575.8,0.8273]